[Event "Live Chess"]
[Site "Chess.com"]
[Date "2024.06.02"]
[Round "-"]
[White "FlyingChessKestrel13"]
[Black "14141409"]
[Result "0-1"]
[WhiteElo "2076"]
[BlackElo "2550"]
[TimeControl "300"]
[EndTime "6:18:45 PDT"]
[Termination "14141409 won by resignation"]

1. e4 {[%clk 0:04:57.1]} 1... e5 {[%clk 0:04:58]} 2. Nf3 {[%clk 0:04:56.3]} 2...
Nc6 {[%clk 0:04:55.9]} 3. Bb5 {[%clk 0:04:54.9]} 3... Bc5 {[%clk 0:04:53.4]} 4.
O-O {[%clk 0:04:52.1]} 4... d6 {[%clk 0:04:50.2]} 5. c3 {[%clk 0:04:51.4]} 5...
Bd7 {[%clk 0:04:47.3]} 6. d4 {[%clk 0:04:50.1]} 6... Bb6 {[%clk 0:04:46.8]} 7.
d5 {[%clk 0:04:47.3]} 7... Nce7 {[%clk 0:04:44.8]} 8. Bxd7+ {[%clk 0:04:46.5]}
8... Qxd7 {[%clk 0:04:44.4]} 9. Nbd2 {[%clk 0:04:44.2]} 9... Nf6 {[%clk
0:04:43.1]} 10. Re1 {[%clk 0:04:42.9]} 10... O-O {[%clk 0:04:41.3]} 11. Nc4
{[%clk 0:04:42.1]} 11... Ne8 {[%clk 0:04:36.9]} 12. Nxb6 {[%clk 0:04:36.3]}
12... axb6 {[%clk 0:04:35.6]} 13. h3 {[%clk 0:04:33.9]} 13... f5 {[%clk
0:04:34.3]} 14. Nd2 {[%clk 0:04:29.1]} 14... f4 {[%clk 0:04:32.7]} 15. f3 {[%clk
0:04:27.6]} 15... Nf6 {[%clk 0:04:30.5]} 16. Nf1 {[%clk 0:04:27.2]} 16... g5
{[%clk 0:04:28.9]} 17. Qe2 {[%clk 0:04:26]} 17... h5 {[%clk 0:04:28.3]} 18. Nh2
{[%clk 0:04:23.4]} 18... Kf7 {[%clk 0:04:26.8]} 19. Bd2 {[%clk 0:04:20]} 19...
Rg8 {[%clk 0:04:26.2]} 20. c4 {[%clk 0:04:18.6]} 20... g4 {[%clk 0:04:25.6]} 21.
hxg4 {[%clk 0:04:17.5]} 21... hxg4 {[%clk 0:04:23.8]} 22. fxg4 {[%clk
0:04:15.1]} 22... Nxg4 {[%clk 0:04:22.6]} 23. Nxg4 {[%clk 0:04:14.5]} 23... Rxg4
{[%clk 0:04:21.1]} 24. Rf1 {[%clk 0:04:13.8]} 24... Rag8 {[%clk 0:04:19.2]} 25.
Rf2 {[%clk 0:04:12.9]} 25... Ke8 {[%clk 0:04:18.1]} 26. a4 {[%clk 0:04:09.3]}
26... Rh4 {[%clk 0:04:17.1]} 27. Ra3 {[%clk 0:03:54.8]} 27... Rgh8 {[%clk
0:04:12.9]} 28. Rff3 {[%clk 0:03:51.1]} 28... Rh1+ {[%clk 0:04:11.2]} 29. Kf2
{[%clk 0:03:50.1]} 29... Qg4 {[%clk 0:04:08.5]} 30. Rh3 {[%clk 0:03:44.2]} 30...
Qg6 {[%clk 0:03:42.1]} 31. Rxh8+ {[%clk 0:03:28.9]} 31... Rxh8 {[%clk
0:03:39.7]} 32. Rh3 {[%clk 0:03:27.1]} 32... Rxh3 {[%clk 0:03:38]} 33. gxh3
{[%clk 0:03:27]} 33... Qg3+ {[%clk 0:03:36.6]} 34. Kf1 {[%clk 0:03:24.7]} 34...
Qxh3+ {[%clk 0:03:35.7]} 35. Qg2 {[%clk 0:03:23.5]} 35... Qd3+ {[%clk
0:03:34.3]} 36. Kg1 {[%clk 0:03:19.8]} 36... f3 {[%clk 0:03:30.7]} 37. Qh2
{[%clk 0:03:13.6]} 37... Qxe4 {[%clk 0:03:26.8]} 38. Qh8+ {[%clk 0:03:12.2]}
38... Kd7 {[%clk 0:03:25.5]} 39. Qh3+ {[%clk 0:03:05.6]} 39... Qf5 {[%clk
0:03:23.3]} 40. Qg3 {[%clk 0:03:03.9]} 40... Qd3 {[%clk 0:03:11.5]} 41. Qh3+
{[%clk 0:03:01.5]} 41... Qf5 {[%clk 0:03:08.9]} 42. Qg3 {[%clk 0:03:00.4]} 42...
Ng6 {[%clk 0:03:06.6]} 43. Kf2 {[%clk 0:02:58.9]} 43... e4 {[%clk 0:03:04.2]}
44. Be3 {[%clk 0:02:56.9]} 44... Kc8 {[%clk 0:02:58.9]} 45. a5 {[%clk
0:02:49.2]} 45... bxa5 {[%clk 0:02:55.5]} 46. Qh2 {[%clk 0:02:47.1]} 46... b6
{[%clk 0:02:53.6]} 47. Qh7 {[%clk 0:02:42.1]} 47... Qg4 {[%clk 0:02:48.8]} 48.
Qh2 {[%clk 0:02:36.6]} 48... Ne5 {[%clk 0:02:43.8]} 49. Bf4 {[%clk 0:02:32.1]}
49... Nd3+ {[%clk 0:02:41.6]} 50. Ke3 {[%clk 0:02:30.9]} 50... Nxf4 {[%clk
0:02:39]} 51. Qh8+ {[%clk 0:02:29.9]} 51... Kb7 {[%clk 0:02:37.7]} 52. Qe8
{[%clk 0:02:29]} 52... Ng2+ {[%clk 0:02:35.2]} 53. Kd2 {[%clk 0:02:25.3]} 53...
e3+ {[%clk 0:02:34.3]} 54. Kc2 {[%clk 0:02:24.2]} 54... Qxc4+ {[%clk 0:02:31]}
0-1

[Event "Live Chess"]
[Site "Chess.com"]
[Date "2024.06.02"]
[Round "-"]
[White "V1nas"]
[Black "KeithArkell"]
[Result "0-1"]
[WhiteElo "1315"]
[BlackElo "2426"]
[TimeControl "300"]
[EndTime "6:18:53 PDT"]
[Termination "KeithArkell won by resignation"]

1. d4 {[%clk 0:04:57.1]} 1... e6 {[%clk 0:04:58.8]} 2. Nf3 {[%clk 0:04:56.8]}
2... Nf6 {[%clk 0:04:57.8]} 3. c4 {[%clk 0:04:55.3]} 3... Bb4+ {[%clk
0:04:56.4]} 4. Bd2 {[%clk 0:04:53.9]} 4... Bxd2+ {[%clk 0:04:55.6]} 5. Nbxd2
{[%clk 0:04:53.8]} 5... d6 {[%clk 0:04:55.2]} 6. e4 {[%clk 0:04:52.5]} 6... Qe7
{[%clk 0:04:54.6]} 7. Bd3 {[%clk 0:04:50.6]} 7... e5 {[%clk 0:04:54.1]} 8. d5
{[%clk 0:04:49.7]} 8... Bg4 {[%clk 0:04:52.4]} 9. h3 {[%clk 0:04:48]} 9... Bxf3
{[%clk 0:04:51.2]} 10. Qxf3 {[%clk 0:04:44.6]} 10... a5 {[%clk 0:04:50.5]} 11.
a3 {[%clk 0:04:43.3]} 11... a4 {[%clk 0:04:48.9]} 12. b4 {[%clk 0:04:41]} 12...
axb3 {[%clk 0:04:47.7]} 13. Nxb3 {[%clk 0:04:39.1]} 13... Nbd7 {[%clk
0:04:46.9]} 14. O-O {[%clk 0:04:32.5]} 14... b6 {[%clk 0:04:46.1]} 15. a4 {[%clk
0:04:30.6]} 15... O-O {[%clk 0:04:40.5]} 16. g4 {[%clk 0:04:28.5]} 16... h6
{[%clk 0:04:38.9]} 17. a5 {[%clk 0:04:12.6]} 17... bxa5 {[%clk 0:04:36.8]} 18.
Rxa5 {[%clk 0:04:06.3]} 18... Rxa5 {[%clk 0:04:35.4]} 19. Nxa5 {[%clk
0:04:06.2]} 19... Nc5 {[%clk 0:04:34.7]} 20. Nc6 {[%clk 0:04:04.3]} 20... Qe8
{[%clk 0:04:30.2]} 21. Rb1 {[%clk 0:03:54.7]} 21... Qa8 {[%clk 0:04:27.9]} 22.
Bf1 {[%clk 0:03:30.4]} 22... Ncxe4 {[%clk 0:04:22.3]} 23. g5 {[%clk 0:03:28.9]}
23... hxg5 {[%clk 0:04:19.4]} 24. Bd3 {[%clk 0:03:24.5]} 24... Nd2 {[%clk
0:04:16.9]} 25. Ne7+ {[%clk 0:03:21.3]} 25... Kh8 {[%clk 0:04:14.6]} 26. Qf5
{[%clk 0:03:04.3]} 26... Qe8 {[%clk 0:04:08.6]} 27. Rd1 {[%clk 0:02:31.1]} 27...
Qxe7 {[%clk 0:03:55.7]} 28. Rxd2 {[%clk 0:02:28.5]} 28... g6 {[%clk 0:03:54.6]}
29. Qxg5 {[%clk 0:02:25.2]} 29... Kg7 {[%clk 0:03:54]} 30. Re2 {[%clk
0:01:57.3]} 30... Nxd5 {[%clk 0:03:51.2]} 31. Qxe7 {[%clk 0:01:54.6]} 31... Nxe7
{[%clk 0:03:50.4]} 32. f4 {[%clk 0:01:52.7]} 32... f6 {[%clk 0:03:49.9]} 33. c5
{[%clk 0:01:48.6]} 33... Nd5 {[%clk 0:03:47.7]} 34. fxe5 {[%clk 0:01:30.4]}
34... dxe5 {[%clk 0:03:43.7]} 35. Bc4 {[%clk 0:01:26]} 35... Nf4 {[%clk
0:03:39.5]} 36. Rd2 {[%clk 0:01:24.9]} 36... Nxh3+ {[%clk 0:03:36.5]} 37. Kh2
{[%clk 0:01:21.5]} 37... Nf4 {[%clk 0:03:32.1]} 38. Rd7+ {[%clk 0:01:18.9]}
38... Kh6 {[%clk 0:03:31.5]} 39. Rxc7 {[%clk 0:01:18.3]} 39... Ra8 {[%clk
0:03:30]} 40. c6 {[%clk 0:01:14.7]} 40... Ra5 {[%clk 0:03:29]} 41. Bg8 {[%clk
0:00:57.7]} 41... Kg5 {[%clk 0:03:15.4]} 42. Rb7 {[%clk 0:00:44]} 42... Rc5
{[%clk 0:03:14.2]} 43. c7 {[%clk 0:00:43.2]} 43... Rc2+ {[%clk 0:03:11.6]} 44.
Kg3 {[%clk 0:00:41.1]} 44... e4 {[%clk 0:03:10.7]} 45. Rb2 {[%clk 0:00:27.3]}
45... Rxc7 {[%clk 0:03:07.7]} 46. Rb5+ {[%clk 0:00:21]} 46... f5 {[%clk
0:03:06.3]} 47. Kf2 {[%clk 0:00:16.7]} 47... Rc3 {[%clk 0:03:04.2]} 48. Rb6
{[%clk 0:00:14.3]} 48... Kg4 {[%clk 0:03:02.2]} 0-1

[Event "Live Chess"]
[Site "Chess.com"]
[Date "2024.06.02"]
[Round "-"]
[White "KyryloPoluliakh"]
[Black "Grace6363"]
[Result "1-0"]
[WhiteElo "1534"]
[BlackElo "1119"]
[TimeControl "300"]
[EndTime "6:19:03 PDT"]
[Termination "KyryloPoluliakh won by resignation"]

1. c4 {[%clk 0:04:58.1]} 1... c5 {[%clk 0:04:56.4]} 2. Nc3 {[%clk 0:04:57.2]}
2... Nc6 {[%clk 0:04:55.7]} 3. g3 {[%clk 0:04:56.4]} 3... g6 {[%clk 0:04:54.7]}
4. Bg2 {[%clk 0:04:55.2]} 4... Bg7 {[%clk 0:04:49.3]} 5. e3 {[%clk 0:04:54.1]}
5... d6 {[%clk 0:04:41.4]} 6. Nge2 {[%clk 0:04:51.7]} 6... Be6 {[%clk 0:04:37]}
7. b3 {[%clk 0:04:42.9]} 7... Qa5 {[%clk 0:04:33.4]} 8. O-O {[%clk 0:04:31.8]}
8... Nb4 {[%clk 0:04:32.5]} 9. d4 {[%clk 0:04:26.8]} 9... cxd4 {[%clk 0:04:31]}
10. exd4 {[%clk 0:04:22.7]} 10... Nf6 {[%clk 0:04:28.9]} 11. Bxb7 {[%clk
0:04:17.9]} 11... Rb8 {[%clk 0:04:27.8]} 12. Bg2 {[%clk 0:04:15.2]} 12... Bg4
{[%clk 0:04:25.1]} 13. Qd2 {[%clk 0:04:08]} 13... O-O {[%clk 0:04:14.2]} 14. Ne4
{[%clk 0:03:54.6]} 14... Bxe2 {[%clk 0:04:04.8]} 15. Qxe2 {[%clk 0:03:46.4]}
15... Nxe4 {[%clk 0:04:04.2]} 16. Qxe4 {[%clk 0:03:43.9]} 16... Qf5 {[%clk
0:03:56.8]} 17. Qxf5 {[%clk 0:03:40.3]} 17... g5 {[%clk 0:03:56.3]} 18. Qxg5
{[%clk 0:03:36.9]} 1-0

[Event "Live Chess"]
[Site "Chess.com"]
[Date "2024.06.02"]
[Round "-"]
[White "yarek"]
[Black "missedJariChance"]
[Result "1-0"]
[WhiteElo "1748"]
[BlackElo "1393"]
[TimeControl "300"]
[EndTime "6:19:09 PDT"]
[Termination "yarek won by resignation"]

1. e4 {[%clk 0:04:57.1]} 1... c5 {[%clk 0:04:58.7]} 2. d4 {[%clk 0:04:55.8]}
2... cxd4 {[%clk 0:04:54.3]} 3. c3 {[%clk 0:04:55.3]} 3... Nf6 {[%clk
0:04:49.5]} 4. e5 {[%clk 0:04:52.9]} 4... Ne4 {[%clk 0:04:36.8]} 5. cxd4 {[%clk
0:04:46.1]} 5... e6 {[%clk 0:04:31.8]} 6. Bd3 {[%clk 0:04:38.4]} 6... Ng5 {[%clk
0:04:26.7]} 7. h4 {[%clk 0:04:21.5]} 7... Be7 {[%clk 0:04:16.5]} 8. hxg5 {[%clk
0:04:17.5]} 8... Bxg5 {[%clk 0:04:14.3]} 9. Nf3 {[%clk 0:04:10.3]} 9... Bxc1
{[%clk 0:04:06.9]} 10. Qxc1 {[%clk 0:04:07.8]} 10... h6 {[%clk 0:04:05.6]} 11.
O-O {[%clk 0:04:03.3]} 11... Nc6 {[%clk 0:04:04.3]} 12. a3 {[%clk 0:03:56.3]}
12... a6 {[%clk 0:04:00.4]} 13. Nc3 {[%clk 0:03:52.8]} 13... h5 {[%clk
0:03:50.2]} 14. Ne4 {[%clk 0:03:50.6]} 14... h4 {[%clk 0:03:47.7]} 15. Nd6+
{[%clk 0:03:47.7]} 15... Kf8 {[%clk 0:03:40]} 16. Ng5 {[%clk 0:03:43.4]} 16...
Nxd4 {[%clk 0:03:25.3]} 17. Ngxf7 {[%clk 0:03:19.3]} 1-0

[Event "Live Chess"]
[Site "Chess.com"]
[Date "2024.06.02"]
[Round "-"]
[White "DoYouLikeCurry"]
[Black "davigator"]
[Result "0-1"]
[WhiteElo "1446"]
[BlackElo "2354"]
[TimeControl "300"]
[EndTime "6:19:11 PDT"]
[Termination "davigator won by checkmate"]

1. e4 {[%clk 0:04:55.4]} 1... c5 {[%clk 0:04:57.8]} 2. a3 {[%clk 0:04:52.2]}
2... d5 {[%clk 0:04:55.2]} 3. exd5 {[%clk 0:04:42.5]} 3... Qxd5 {[%clk
0:04:54.2]} 4. Nc3 {[%clk 0:04:42.1]} 4... Qd8 {[%clk 0:04:50.1]} 5. Bb5+ {[%clk
0:04:35.1]} 5... Bd7 {[%clk 0:04:48.5]} 6. Bxd7+ {[%clk 0:04:25.4]} 6... Qxd7
{[%clk 0:04:47.6]} 7. Nf3 {[%clk 0:04:23.3]} 7... Nc6 {[%clk 0:04:44.8]} 8. d3
{[%clk 0:04:18.3]} 8... Nf6 {[%clk 0:04:41.5]} 9. Be3 {[%clk 0:04:13.1]} 9... e6
{[%clk 0:04:39.7]} 10. O-O {[%clk 0:04:01.3]} 10... Be7 {[%clk 0:04:38.2]} 11.
Qd2 {[%clk 0:03:52]} 11... Rd8 {[%clk 0:04:36]} 12. Rfe1 {[%clk 0:03:30]} 12...
O-O {[%clk 0:04:33.6]} 13. Rad1 {[%clk 0:03:23.3]} 13... Nd4 {[%clk 0:04:32]}
14. Ne5 {[%clk 0:02:43.9]} 14... Qc7 {[%clk 0:04:22.1]} 15. Bxd4 {[%clk
0:02:28.9]} 15... cxd4 {[%clk 0:04:20.5]} 16. Nb5 {[%clk 0:02:26.8]} 16... Qb6
{[%clk 0:04:18.8]} 17. a4 {[%clk 0:02:22.2]} 17... a6 {[%clk 0:04:17.8]} 18. Nc4
{[%clk 0:02:16]} 18... Qc6 {[%clk 0:04:06.6]} 19. Nba3 {[%clk 0:02:08.2]} 19...
b5 {[%clk 0:04:05.6]} 20. axb5 {[%clk 0:02:06.2]} 20... axb5 {[%clk 0:04:04.2]}
21. Ne5 {[%clk 0:02:02.5]} 21... Qb6 {[%clk 0:04:00.5]} 22. Nf3 {[%clk
0:01:44.5]} 22... Rd5 {[%clk 0:03:58.5]} 23. Re5 {[%clk 0:01:32.3]} 23... Rfd8
{[%clk 0:03:56.8]} 24. Rxd5 {[%clk 0:01:29.3]} 24... Nxd5 {[%clk 0:03:53.6]} 25.
Nxd4 {[%clk 0:01:23.2]} 25... Qxd4 {[%clk 0:03:50.8]} 26. Nxb5 {[%clk
0:01:18.1]} 26... Qxb2 {[%clk 0:03:49.6]} 27. Qa5 {[%clk 0:01:12.7]} 27... Qxc2
{[%clk 0:03:39.2]} 28. Ra1 {[%clk 0:01:09.7]} 28... Qxd3 {[%clk 0:03:36.1]} 29.
Qa8 {[%clk 0:01:06.1]} 29... Nf4 {[%clk 0:03:28.9]} 30. Qa4 {[%clk 0:00:47.9]}
30... g5 {[%clk 0:03:22.8]} 31. Na3 {[%clk 0:00:20.6]} 31... Qd5 {[%clk
0:03:18]} 32. Nc2 {[%clk 0:00:17.4]} 32... Qxg2# {[%clk 0:03:16.6]} 0-1

[Event "Live Chess"]
[Site "Chess.com"]
[Date "2024.06.02"]
[Round "-"]
[White "degringolade64"]
[Black "Crowded_House"]
[Result "1-0"]
[WhiteElo "2107"]
[BlackElo "1624"]
[TimeControl "300"]
[EndTime "6:19:12 PDT"]
[Termination "degringolade64 won by resignation"]

1. e4 {[%clk 0:04:56.6]} 1... e6 {[%clk 0:04:59.4]} 2. d4 {[%clk 0:04:54.9]}
2... d5 {[%clk 0:04:59]} 3. e5 {[%clk 0:04:53.6]} 3... c5 {[%clk 0:04:57.6]} 4.
c3 {[%clk 0:04:52.9]} 4... Nc6 {[%clk 0:04:56.7]} 5. Nf3 {[%clk 0:04:51.9]} 5...
Qb6 {[%clk 0:04:56.3]} 6. Bd3 {[%clk 0:04:50.7]} 6... Bd7 {[%clk 0:04:55.7]} 7.
dxc5 {[%clk 0:04:48.9]} 7... Bxc5 {[%clk 0:04:54]} 8. O-O {[%clk 0:04:48.4]}
8... Qc7 {[%clk 0:04:49]} 9. Re1 {[%clk 0:04:44.5]} 9... Nge7 {[%clk 0:04:47.8]}
10. b4 {[%clk 0:04:42.5]} 10... Bb6 {[%clk 0:04:45.5]} 11. a4 {[%clk 0:04:39.2]}
11... a6 {[%clk 0:04:43.8]} 12. h4 {[%clk 0:04:31.8]} 12... O-O {[%clk
0:04:33.4]} 13. Na3 {[%clk 0:04:24.6]} 13... Ba7 {[%clk 0:04:30.6]} 14. h5
{[%clk 0:04:19.3]} 14... h6 {[%clk 0:04:27.5]} 15. Bd2 {[%clk 0:04:03.4]} 15...
Rac8 {[%clk 0:04:25.5]} 16. Rc1 {[%clk 0:04:01.2]} 16... Nb8 {[%clk 0:04:24]}
17. Bb1 {[%clk 0:03:57.7]} 17... b5 {[%clk 0:04:17.6]} 18. axb5 {[%clk
0:03:55.4]} 18... Bxb5 {[%clk 0:04:15.4]} 19. Nxb5 {[%clk 0:03:53.2]} 19... axb5
{[%clk 0:04:14.8]} 20. Qe2 {[%clk 0:03:45]} 20... Nd7 {[%clk 0:03:56.3]} 21. Qd3
{[%clk 0:03:42.5]} 21... g6 {[%clk 0:03:42.8]} 22. Bxh6 {[%clk 0:03:38.4]} 22...
Rfe8 {[%clk 0:03:40]} 23. Qd2 {[%clk 0:02:55.9]} 23... Nf5 {[%clk 0:03:27.3]}
24. hxg6 {[%clk 0:02:52.7]} 24... fxg6 {[%clk 0:03:25.2]} 25. Qg5 {[%clk
0:02:50.5]} 25... Nf8 {[%clk 0:03:14.3]} 26. Bxf8 {[%clk 0:02:41.8]} 26... Rxf8
{[%clk 0:03:07.8]} 27. Qxg6+ {[%clk 0:02:39.1]} 27... Qg7 {[%clk 0:02:58]} 28.
Qxe6+ {[%clk 0:02:37.5]} 28... Qf7 {[%clk 0:02:49.3]} 29. Bxf5 {[%clk
0:02:33.7]} 29... Qxe6 {[%clk 0:02:48.6]} 30. Bxe6+ {[%clk 0:02:32.7]} 1-0

[Event "Live Chess"]
[Site "Chess.com"]
[Date "2024.06.02"]
[Round "-"]
[White "Bradfield133"]
[Black "NottheBishopSacrifice"]
[Result "0-1"]
[WhiteElo "1864"]
[BlackElo "2317"]
[TimeControl "300"]
[EndTime "6:19:21 PDT"]
[Termination "NottheBishopSacrifice won on time"]

1. c4 {[%clk 0:04:58.2]} 1... e6 {[%clk 0:04:58.5]} 2. e4 {[%clk 0:04:56]} 2...
d5 {[%clk 0:04:58.4]} 3. exd5 {[%clk 0:04:55.6]} 3... exd5 {[%clk 0:04:57]} 4.
d4 {[%clk 0:04:55.5]} 4... Nf6 {[%clk 0:04:53.6]} 5. Nc3 {[%clk 0:04:55]} 5...
Bb4 {[%clk 0:04:52]} 6. Nf3 {[%clk 0:04:50.8]} 6... O-O {[%clk 0:04:49.9]} 7.
Be2 {[%clk 0:04:49.9]} 7... Re8 {[%clk 0:04:47.7]} 8. O-O {[%clk 0:04:47.5]}
8... c6 {[%clk 0:04:45.6]} 9. h3 {[%clk 0:04:41.7]} 9... Bf5 {[%clk 0:04:42.8]}
10. Re1 {[%clk 0:04:28.9]} 10... Nbd7 {[%clk 0:04:39.2]} 11. Qb3 {[%clk
0:04:27]} 11... Bxc3 {[%clk 0:04:36.8]} 12. bxc3 {[%clk 0:04:24.3]} 12... b6
{[%clk 0:04:28.1]} 13. Bg5 {[%clk 0:04:15.9]} 13... h6 {[%clk 0:04:25.9]} 14.
Bxf6 {[%clk 0:04:05.3]} 14... Nxf6 {[%clk 0:04:23.8]} 15. cxd5 {[%clk
0:03:58.8]} 15... cxd5 {[%clk 0:04:21.1]} 16. Ne5 {[%clk 0:03:52.6]} 16... Qc7
{[%clk 0:04:17.3]} 17. Rac1 {[%clk 0:03:46]} 17... Rac8 {[%clk 0:04:08.5]} 18.
Bb5 {[%clk 0:03:38.5]} 18... Rf8 {[%clk 0:04:02.2]} 19. Ba6 {[%clk 0:03:20.5]}
19... Rcd8 {[%clk 0:03:59.2]} 20. Re3 {[%clk 0:03:04.9]} 20... Be6 {[%clk
0:03:57.4]} 21. Bd3 {[%clk 0:02:52]} 21... Ne4 {[%clk 0:03:50.5]} 22. Bxe4
{[%clk 0:02:47.5]} 22... dxe4 {[%clk 0:03:48.1]} 23. Qc2 {[%clk 0:02:45.7]}
23... f5 {[%clk 0:03:46]} 24. f4 {[%clk 0:02:29.1]} 24... Bc4 {[%clk 0:03:40.2]}
25. Qf2 {[%clk 0:02:08.6]} 25... b5 {[%clk 0:03:36.8]} 26. Rb1 {[%clk
0:01:43.4]} 26... a6 {[%clk 0:03:34.8]} 27. Rb2 {[%clk 0:01:35.3]} 27... Rc8
{[%clk 0:03:26.5]} 28. Qh4 {[%clk 0:01:21.9]} 28... Qd8 {[%clk 0:03:21.6]} 29.
Qxd8 {[%clk 0:01:18.2]} 29... Rfxd8 {[%clk 0:03:21.5]} 30. Nxc4 {[%clk
0:01:16.6]} 30... Rxc4 {[%clk 0:03:19.6]} 31. Rb3 {[%clk 0:01:10.5]} 31... Ra4
{[%clk 0:03:18.2]} 32. a3 {[%clk 0:01:09.1]} 32... Rc4 {[%clk 0:03:17.5]} 33.
Kf2 {[%clk 0:01:07.4]} 33... g5 {[%clk 0:03:15.9]} 34. g3 {[%clk 0:01:05]} 34...
Kf7 {[%clk 0:03:14.4]} 35. fxg5 {[%clk 0:00:56.2]} 35... hxg5 {[%clk 0:03:12.8]}
36. Ke2 {[%clk 0:00:50.1]} 36... Re8 {[%clk 0:03:09.7]} 37. Kd2 {[%clk
0:00:46.8]} 37... f4 {[%clk 0:03:08.2]} 38. gxf4 {[%clk 0:00:43.9]} 38... gxf4
{[%clk 0:03:08.1]} 39. Re1 {[%clk 0:00:40.3]} 39... Rc6 {[%clk 0:03:04.6]} 40.
Rh1 {[%clk 0:00:34.3]} 40... e3+ {[%clk 0:03:02.6]} 41. Ke2 {[%clk 0:00:32.5]}
41... Rf6 {[%clk 0:03:01.9]} 42. Kf3 {[%clk 0:00:30.5]} 42... Rg8 {[%clk
0:03:00.6]} 43. Rb2 {[%clk 0:00:26.3]} 43... Rg3+ {[%clk 0:02:59.6]} 44. Ke4
{[%clk 0:00:25.2]} 44... e2 {[%clk 0:02:47.1]} 45. Rxe2 {[%clk 0:00:19.3]} 45...
Rxc3 {[%clk 0:02:46.5]} 46. Kd5 {[%clk 0:00:15.7]} 46... f3 {[%clk 0:02:44.5]}
47. Rf2 {[%clk 0:00:13.8]} 47... Rxa3 {[%clk 0:02:41.3]} 48. Rhf1 {[%clk
0:00:11.7]} 48... b4 {[%clk 0:02:38.5]} 49. Kc4 {[%clk 0:00:10.2]} 49... a5
{[%clk 0:02:37.8]} 50. d5 {[%clk 0:00:09.5]} 50... Rc3+ {[%clk 0:02:37]} 51. Kb5
{[%clk 0:00:07.5]} 51... b3 {[%clk 0:02:32.2]} 52. Kxa5 {[%clk 0:00:03.2]} 52...
Rd3 {[%clk 0:02:30.3]} 53. Rb1 {[%clk 0:00:00.7]} 53... Rf5 {[%clk 0:02:23.6]}
0-1

[Event "Live Chess"]
[Site "Chess.com"]
[Date "2024.06.02"]
[Round "-"]
[White "Ferrarifan27"]
[Black "TheSmoulderingMaster"]
[Result "1-0"]
[WhiteElo "2140"]
[BlackElo "1754"]
[TimeControl "300"]
[EndTime "6:19:40 PDT"]
[Termination "Ferrarifan27 won by resignation"]

1. e4 {[%clk 0:04:57.6]} 1... c5 {[%clk 0:04:58.4]} 2. Nf3 {[%clk 0:04:56.3]}
2... d6 {[%clk 0:04:57.7]} 3. d4 {[%clk 0:04:54.2]} 3... cxd4 {[%clk 0:04:57]}
4. Nxd4 {[%clk 0:04:52.3]} 4... Nf6 {[%clk 0:04:56.3]} 5. Nc3 {[%clk 0:04:51]}
5... g6 {[%clk 0:04:55.4]} 6. Nd5 {[%clk 0:04:48.5]} 6... Bg7 {[%clk 0:04:54.2]}
7. Nxf6+ {[%clk 0:04:44.2]} 7... Bxf6 {[%clk 0:04:51.7]} 8. Bh6 {[%clk
0:04:41.6]} 8... Nc6 {[%clk 0:04:47.5]} 9. c3 {[%clk 0:04:38.7]} 9... Bd7 {[%clk
0:04:45.7]} 10. Bc4 {[%clk 0:04:30.1]} 10... Ne5 {[%clk 0:04:42.4]} 11. Bb3
{[%clk 0:04:28.3]} 11... Qb6 {[%clk 0:04:39.9]} 12. f3 {[%clk 0:04:20.4]} 12...
O-O-O {[%clk 0:04:37.5]} 13. O-O {[%clk 0:04:16.6]} 13... Nc6 {[%clk 0:04:26.6]}
14. Kh1 {[%clk 0:04:15.3]} 14... Bxd4 {[%clk 0:04:20.3]} 15. cxd4 {[%clk
0:04:14.4]} 15... Nxd4 {[%clk 0:04:19.5]} 16. Bxf7 {[%clk 0:04:10.9]} 16... Qxb2
{[%clk 0:04:14.4]} 17. Bg7 {[%clk 0:04:05.5]} 17... Ne6 {[%clk 0:04:05.5]} 18.
Bxb2 {[%clk 0:04:03.7]} 1-0

[Event "Live Chess"]
[Site "Chess.com"]
[Date "2024.06.02"]
[Round "-"]
[White "juniortay"]
[Black "ACM42"]
[Result "1-0"]
[WhiteElo "2342"]
[BlackElo "2209"]
[TimeControl "300"]
[EndTime "6:19:42 PDT"]
[Termination "juniortay won on time"]

1. e4 {[%clk 0:04:59]} 1... e6 {[%clk 0:04:58.5]} 2. Nc3 {[%clk 0:04:57.9]} 2...
c5 {[%clk 0:04:57.3]} 3. Nf3 {[%clk 0:04:57.8]} 3... Nc6 {[%clk 0:04:56.4]} 4.
g3 {[%clk 0:04:57.3]} 4... g6 {[%clk 0:04:55.4]} 5. Bg2 {[%clk 0:04:56.5]} 5...
Bg7 {[%clk 0:04:54.9]} 6. O-O {[%clk 0:04:55.7]} 6... Nge7 {[%clk 0:04:54.3]} 7.
d4 {[%clk 0:04:53.4]} 7... cxd4 {[%clk 0:04:52.8]} 8. Nb5 {[%clk 0:04:52.1]}
8... d5 {[%clk 0:04:50.5]} 9. exd5 {[%clk 0:04:49.3]} 9... Nxd5 {[%clk
0:04:49.3]} 10. Nbxd4 {[%clk 0:04:47.2]} 10... Nxd4 {[%clk 0:04:38.9]} 11. Nxd4
{[%clk 0:04:45.3]} 11... O-O {[%clk 0:04:32.5]} 12. c3 {[%clk 0:04:41.9]} 12...
Bd7 {[%clk 0:04:18.8]} 13. Re1 {[%clk 0:04:38.6]} 13... Rc8 {[%clk 0:04:14.4]}
14. h4 {[%clk 0:04:33.2]} 14... h5 {[%clk 0:04:08.2]} 15. Bg5 {[%clk 0:04:29.2]}
15... Qb6 {[%clk 0:04:00.9]} 16. Qd2 {[%clk 0:04:26.5]} 16... Nb4 {[%clk
0:03:15.7]} 17. a3 {[%clk 0:04:08.3]} 17... Na6 {[%clk 0:02:57.9]} 18. Nf5
{[%clk 0:03:56.8]} 18... exf5 {[%clk 0:02:49.6]} 19. Qxd7 {[%clk 0:03:53.5]}
19... Nc5 {[%clk 0:02:45.4]} 20. Qe7 {[%clk 0:03:39.5]} 20... Qxb2 {[%clk
0:02:34.8]} 21. Bd5 {[%clk 0:03:17]} 21... Qxc3 {[%clk 0:02:20.3]} 22. Rac1
{[%clk 0:03:03.7]} 22... Qa5 {[%clk 0:02:05.5]} 23. Bf6 {[%clk 0:02:27.5]} 23...
Ne4 {[%clk 0:01:20]} 24. Bxf7+ {[%clk 0:02:23.3]} 24... Rxf7 {[%clk 0:01:14.2]}
25. Rxc8+ {[%clk 0:02:21.4]} 25... Kh7 {[%clk 0:01:11.9]} 26. Rxe4 {[%clk
0:01:33.7]} 26... Rxf6 {[%clk 0:00:45]} 27. Rc7 {[%clk 0:01:22.6]} 27... Qxc7
{[%clk 0:00:37.9]} 28. Qxc7 {[%clk 0:01:17.9]} 28... fxe4 {[%clk 0:00:35.9]} 29.
Qxb7 {[%clk 0:01:17.2]} 29... a6 {[%clk 0:00:34.5]} 30. Kg2 {[%clk 0:01:14.8]}
30... Re6 {[%clk 0:00:18]} 31. Qc8 {[%clk 0:01:12.7]} 31... Re7 {[%clk
0:00:15.4]} 32. Qxa6 {[%clk 0:01:11.6]} 32... e3 {[%clk 0:00:14.6]} 33. fxe3
{[%clk 0:01:10.7]} 33... Rxe3 {[%clk 0:00:13.7]} 34. Qa7 {[%clk 0:01:07.5]}
34... Re2+ {[%clk 0:00:12.2]} 35. Kf3 {[%clk 0:01:06.4]} 35... Rb2 {[%clk
0:00:11]} 36. a4 {[%clk 0:01:05.3]} 36... Rb3+ {[%clk 0:00:10.2]} 37. Kg2 {[%clk
0:01:03.4]} 37... Rb2+ {[%clk 0:00:09.2]} 38. Kh3 {[%clk 0:01:02.7]} 38... Rb3
{[%clk 0:00:08.2]} 39. a5 {[%clk 0:01:00]} 39... Kh6 {[%clk 0:00:07.7]} 40. Qe7
{[%clk 0:00:54.5]} 40... Rb5 {[%clk 0:00:01.2]} 41. a6 {[%clk 0:00:52.6]} 41...
Bd4 {[%clk 0:00:00.5]} 42. Qf8+ {[%clk 0:00:45.3]} 1-0